bitfinex/quotes_ETHUSD_20220218
["timestamp","ask_amount","ask_price","bid_price","bid_amount"]
[1645227634570,0.91008555,2787.5,2786.9,2.6916978]
[1645227634772,0.9076505,2787.5,2786.9,2.6916978]
[1645227635172,0.00243505,2787.5,2787.0,1.52424321]
[1645227635572,0.0077749,2787.5,2787.0,1.52424321]
[1645227635973,0.00533985,2787.5,2787.0,1.52424321]
[1645227636375,0.00777496,2787.5,2787.0,1.52424321]
[1645227637220,0.00533985,2787.5,2787.0,1.52424321]
[1645227637420,0.00777496,2787.5,2787.0,1.52424321]
[1645227638220,1.81276546,2787.5,2787.0,1.52424321]
[1645227638421,0.9076505,2787.4,2786.7,1.2094]
[1645227638619,0.00533985,2787.3,2786.8,1.5262146]
[1645227639722,0.00533985,2787.3,2786.8,1.52421822]
[1645227639921,0.00533985,2787.3,2786.8,1.5262146]
[1645227640120,0.00533985,2787.3,2786.8,2.4235776]
[1645227640370,0.00533985,2787.3,2786.9,1.52421822]
[1645227640770,0.00533985,2787.3,2786.7,1.2094]
[1645227640969,0.00533985,2787.3,2786.8,1.5242076]
[1645227641170,0.00533985,2787.3,2786.8,1.52620398]
[1645227641969,0.00533985,2787.3,2786.8,1.5242076]
[1645227642370,0.00533985,2787.3,2786.8,1.52620398]
[1645227643170,0.00533985,2787.3,2786.8,1.5242076]
[1645227643572,0.00533985,2787.3,2786.8,1.52620398]
[1645227644428,0.00533985,2787.3,2786.9,3.5]
[1645227644626,0.91542533,2787.5,2787.0,1.5242076]
[1645227644828,0.00533985,2787.3,2787.0,1.5242076]
[1645227645027,0.00777483,2787.5,2787.1,3.5]
[1645227645231,0.00777483,2787.5,2787.2,1.5242076]
[1645227645429,0.00777483,2787.5,2787.3,3.5]
[1645227645626,1.2331,2787.8,2787.3,3.5]
[1645227645627,0.00533985,2787.7,2787.4,2.4695216]
[1645227645827,0.00533985,2787.8,2787.5,5.0242076]
[1645227646027,0.9076505,2788.0,2787.6,1.5242076]
[1645227646232,0.00533985,2787.9,2787.6,1.5242076]
[1645227646429,3.21753828,2788.2,2787.7,3.5]
[1645227646430,0.91299035,2788.1,2787.7,3.5]
[1645227646635,0.00973828,2788.2,2787.7,3.5]
[1645227646636,0.00973828,2788.2,2787.8,1.5242076]
[1645227647032,0.9076505,2788.6,2787.6,1.97301]
[1645227647231,0.00533985,2788.7,2787.9,1.09960814]
[1645227647232,0.00533985,2788.5,2787.9,1.09960814]
[1645227647432,0.9076505,2788.6,2787.9,1.09960814]
[1645227647630,0.00533985,2788.5,2787.9,1.09960814]
[1645227648169,0.91299035,2788.6,2787.9,1.09960814]
[1645227648369,0.00236605,2788.3,2787.9,1.09960814]
[1645227648668,0.0077059,2788.3,2787.9,1.09960814]
[1645227648873,0.00236605,2788.3,2788.0,3.5]
[1645227649072,0.0077059,2788.3,2788.0,3.5]
[1645227649274,0.89705,2788.4,2788.0,3.5]
[1645227649470,0.00236606,2788.3,2787.9,1.09960814]
[1645227649672,0.00770591,2788.3,2788.0,3.5]
[1645227649872,0.00236606,2788.3,2787.9,1.09960814]
[1645227650074,0.00770591,2788.3,2788.0,3.5]
[1645227650275,0.00236606,2788.3,2788.0,3.5]
[1645227650474,0.89705,2788.4,2788.0,3.5]
[1645227650678,0.89705,2788.4,2787.5,8.123629]
[1645227650679,0.00236606,2788.3,2787.6,0.1792]
[1645227650875,0.89717,2788.2,2787.5,5.4325]
[1645227651075,0.89717,2788.2,2787.6,3.5]
[1645227651376,0.89717,2788.2,2787.3,4.9417324]
[1645227651377,0.00533985,2788.1,2787.4,3.5]
[1645227651624,0.00533985,2788.1,2787.5,1.52372702]
[1645227651823,0.00533985,2788.1,2787.6,3.5]
[1645227652020,0.00231874,2788.0,2787.6,4.68107149]
[1645227652220,0.00231874,2788.0,2787.6,1.18107149]
[1645227652422,0.00231874,2788.0,2787.6,2.07815139]
[1645227652620,0.89948874,2788.0,2787.7,3.5]
[1645227652821,0.00533985,2788.2,2787.6,1.18107149]
[1645227653020,0.00533985,2788.2,2787.7,3.5]
[1645227653221,0.00231875,2787.9,2787.6,1.18107149]
[1645227653820,0.00231875,2787.9,2787.6,4.68107149]
[1645227654021,0.91299035,2788.6,2787.6,4.68107149]
[1645227654219,0.00533985,2788.6,2787.6,4.68107149]
[1645227654425,0.00231876,2787.9,2787.6,4.68107149]
[1645227654619,0.00231876,2787.9,2787.6,7.37219139]
[1645227654824,0.90636366,2788.3,2787.6,6.47511259]
[1645227654825,0.41402227,2788.3,2787.6,6.47511259]
[1645227655221,0.40474861,2788.3,2787.6,6.47511259]
[1645227656679,0.0018333,2788.1,2787.6,6.47511259]
[1645227657677,0.40474861,2788.3,2787.6,6.47511259]
[1645227657888,0.00183327,2788.0,2787.6,6.47511259]
[1645227658277,0.00183327,2788.0,2787.6,1.7940411]
[1645227658877,0.89715,2788.2,2787.6,1.7940411]
[1645227659127,0.00243189,2788.0,2787.6,1.7940411]
[1645227660126,2.02310102,2788.2,2787.6,1.7940411]
[1645227660325,0.00243189,2788.0,2787.6,1.7940411]
[1645227660528,0.89960189,2788.0,2787.6,1.7940411]
[1645227660827,0.89960189,2788.0,2787.6,5.2940411]
[1645227661233,0.89717,2788.0,2787.4,8.7520495]
[1645227661429,0.89960189,2788.0,2787.4,4.5286495]
[1645227662028,0.89960189,2788.0,2787.5,0.8971401]
[1645227662427,0.89717,2788.0,2787.6,3.5]
[1645227662885,0.89960186,2788.0,2787.5,0.8971401]
[1645227663284,0.89960186,2788.0,2787.4,4.5286495]
[1645227663684,0.89717,2788.0,2787.4,4.5286495]
[1645227663884,0.89960183,2788.0,2787.4,4.5286495]
[1645227664484,0.89960183,2788.0,2787.5,0.8971349]
[1645227664891,0.89717,2788.0,2787.5,0.8971349]
[1645227665085,0.89960186,2788.0,2787.5,0.8971349]
[1645227665486,0.89960186,2788.0,2787.6,3.5]
[1645227665487,0.00243186,2788.0,2787.6,3.5]
[1645227666089,1.79422,2788.4,2787.6,3.5]
[1645227666490,0.89962189,2788.0,2787.5,0.8971349]
[1645227666921,0.89962189,2788.0,2787.6,3.5]
[1645227667324,0.89719,2788.0,2787.6,3.5]
[1645227667528,0.89962189,2788.0,2787.6,3.5]
[1645227667827,0.00243189,2788.0,2787.6,6.1909852]
[1645227668422,0.00972615,2788.4,2787.6,6.1909852]
[1645227668624,1.1849,2788.7,2787.7,1.52359359]
[1645227668826,0.00243189,2788.0,2787.8,3.5]
[1645227669022,0.00243189,2788.0,2787.9,0.89761618]
[1645227669221,0.00243189,2788.0,2787.9,1.79461638]
[1645227669424,0.00243189,2788.0,2787.9,0.89761618]
[1645227669622,1.79414,2788.6,2787.9,0.89761618]
[1645227670022,0.00243195,2788.1,2787.9,0.89761618]
[1645227670865,0.89705,2788.4,2787.9,0.89761618]
[1645227671066,0.00243194,2788.1,2787.9,0.89761618]
[1645227672167,1.79414,2788.6,2787.9,0.89761618]
[1645227672366,0.00243194,2788.1,2787.9,0.89761618]
[1645227673367,0.89711,2788.3,2787.9,0.89761618]
[1645227673567,0.00243194,2788.1,2787.9,0.89761618]
[1645227674428,0.89714,2788.2,2787.9,0.89761618]
[1645227674825,0.00243194,2788.1,2787.9,0.89761618]
[1645227675428,0.00243194,2788.1,2787.8,3.5]
[1645227675626,0.89714,2788.2,2787.8,3.5]
[1645227675831,0.89706,2788.4,2787.8,3.5]
[1645227676028,0.00243194,2788.1,2787.8,3.5]
[1645227676730,0.00243194,2788.1,2787.8,4.396993]
[1645227676932,4.1965505,2788.9,2787.9,1.52352798]
[1645227677131,0.00243195,2788.1,2788.0,3.5]
[1645227677331,0.00243195,2788.1,2787.8,3.5]
[1645227677532,0.00243195,2788.1,2787.9,12.53353151]
[1645227677734,0.9076505,2789.3,2788.1,11.01330405]
[1645227677995,1.97135837,2789.4,2788.6,1.03064965]
[1645227678184,1.97135837,2789.4,2788.7,3.5]
[1645227678585,0.9076505,2789.4,2788.7,3.5]
[1645227678889,2.9816,2789.8,2789.0,11.01]
[1645227678890,1.0868505,2789.8,2789.0,11.01]
[1645227679087,7.85362114,2789.9,2788.7,4.39663]
[1645227679088,8.3976505,2789.9,2789.2,11.01]
[1645227679289,0.9076505,2790.2,2789.3,14.51]
[1645227679686,0.0018264,2789.5,2789.3,14.51]
[1645227679890,0.0018264,2789.5,2789.4,4.44620061]
[1645227680087,0.0018264,2789.5,2789.4,5.34257241]
[1645227680488,1.75905512,2790.4,2789.4,5.34257241]
[1645227680489,0.85140462,2790.4,2789.4,5.34257241]
[1645227680787,0.85140462,2790.4,2789.1,0.1792]
[1645227680788,0.0018264,2789.6,2789.1,3.5]
[1645227680988,0.0018264,2789.6,2788.9,2.6894004]
[1645227681393,0.0018264,2789.6,2789.0,3.5]
[1645227681637,9.71071958,2790.4,2789.1,0.8966648]
[1645227681638,1.0868505,2790.3,2789.1,0.8966648]
[1645227681825,4.1706505,2790.3,2789.3,1.11778483]
[1645227682027,0.00971181,2789.9,2789.4,3.5]
[1645227682226,0.00971181,2789.9,2789.3,1.11778483]
[1645227682928,0.89653,2790.2,2789.5,0.896553]
[1645227683327,0.00242825,2789.7,2789.5,0.896553]
[1645227683533,0.00242825,2789.7,2789.6,3.5]
[1645227684232,8.34140462,2790.4,2789.4,3.5]
[1645227684233,9.24905512,2790.4,2789.4,3.5]
[1645227685030,0.89653,2790.2,2789.4,3.5]
[1645227685478,0.00531315,2790.1,2789.4,3.5]
[1645227686078,0.00531315,2790.1,2789.3,1.11778483]
[1645227686280,0.00531315,2790.1,2789.4,3.5]
[1645227686480,0.90191315,2790.1,2789.4,3.5]
[1645227686882,0.00531315,2790.1,2789.4,3.5]
[1645227687081,0.00531315,2790.3,2789.4,4.3965718]
[1645227687283,0.00531315,2790.3,2789.5,11.90642]
[1645227687482,0.00531315,2790.3,2789.6,3.5]
[1645227687682,0.00531315,2790.3,2789.4,5.29268]
[1645227687883,0.00531315,2790.3,2789.3,1.06778483]
[1645227688083,0.00242486,2790.0,2789.3,1.01778483]
[1645227688289,0.00242486,2790.0,2789.2,6.7058]
[1645227688485,0.89667,2789.9,2789.2,6.7058]
[1645227688684,0.00531315,2789.8,2789.0,0.1792]
[1645227688886,0.00531315,2789.8,2788.8,15.60268373]
[1645227688887,5.0,2789.7,2788.8,13.80956373]
[1645227689133,1.15392164,2789.4,2788.8,13.80956373]
[1645227689327,0.00242493,2789.7,2788.8,13.80956373]
[1645227689526,0.89913493,2789.7,2788.8,13.80956373]
[1645227689725,0.00531315,2789.6,2788.9,0.8966718]
[1645227690532,0.002425,2789.4,2788.6,0.89683665]
[1645227690727,0.002425,2789.4,2788.4,1.79342]
[1645227690932,0.00773815,2789.4,2788.5,3.5]
[1645227691331,0.00531315,2789.4,2788.8,0.896778]
[1645227691536,0.00242506,2789.1,2788.8,0.896778]
[1645227691830,0.00242506,2789.1,2788.8,4.396778]
[1645227692629,0.00531315,2789.6,2788.8,4.396778]
[1645227692878,0.1792,2790.0,2788.8,4.396778]
[1645227692879,0.00242506,2789.1,2788.8,4.396778]
[1645227693679,0.90508233,2789.9,2788.8,5.293488]
[1645227693680,0.89666,2789.8,2788.8,5.293488]
[1645227693880,0.00531315,2789.7,2789.1,0.8966672]
[1645227694083,0.00531315,2789.7,2788.8,3.5]
[1645227694084,0.0096988,2789.5,2788.8,3.5]
[1645227694883,0.8968,2789.4,2788.8,3.5]
[1645227695082,0.8968,2789.4,2788.7,2.71520113]
[1645227695083,0.00531315,2789.3,2788.7,1.7934118]
[1645227695284,0.00773817,2789.3,2788.7,1.7934118]
[1645227695583,0.00773817,2789.3,2788.6,1.3455]
[1645227695584,0.00773817,2789.3,2788.6,1.1663]
[1645227695989,0.90459817,2789.3,2788.6,2.0631175]
[1645227696183,1.79877315,2789.8,2788.7,1.7934276]
[1645227696383,0.00242506,2789.1,2788.7,1.7934276]
[1645227697326,0.00531315,2789.3,2788.8,0.8967119]
[1645227697723,0.00242507,2789.0,2788.8,0.8967119]
[1645227698527,0.00531315,2789.6,2788.8,0.8967119]
[1645227698724,0.1792,2790.2,2788.9,0.89668]
[1645227698725,0.00531315,2789.7,2788.9,0.89668]
[1645227698925,0.00242507,2789.0,2788.9,0.89668]
[1645227699123,0.00242507,2789.0,2788.8,0.8967119]
[1645227699725,0.00531315,2789.4,2788.8,0.8967119]
[1645227699926,0.00531315,2789.4,2788.7,1.7934276]
[1645227700126,0.00242507,2789.0,2788.4,1.79345]
[1645227700382,0.00242507,2789.0,2788.6,0.8968195]
[1645227701087,0.90208315,2789.4,2788.6,0.8968195]
[1645227701281,0.0024251,2788.9,2788.8,0.8967273]
[1645227702087,0.00531315,2789.4,2788.8,0.8967273]
[1645227702281,0.00531315,2789.4,2788.8,1.7934173]
[1645227702482,0.00242508,2789.0,2788.8,1.7934173]
[1645227703482,0.00531315,2789.4,2788.8,1.7934173]
[1645227703787,0.00242507,2789.0,2788.8,1.7934173]
[1645227704622,0.00531315,2789.4,2788.8,1.7934173]
[1645227704925,0.00242507,2789.0,2788.8,1.7934173]
[1645227705122,0.00242507,2789.0,2788.8,0.8967273]
[1645227705523,0.00242507,2789.0,2788.7,1.7934003]
[1645227705723,0.00531315,2789.4,2788.7,1.7934003]
[1645227706125,0.00242507,2789.0,2788.8,3.5]
[1645227706330,0.00242507,2789.0,2788.8,4.39662]
[1645227706525,0.00242507,2789.0,2788.9,4.3966972]
[1645227707027,0.00531315,2789.8,2788.9,4.3966972]
[1645227707225,0.00242506,2789.1,2788.9,4.3966972]
[1645227707628,0.00242506,2789.1,2788.9,0.8966972]
[1645227708182,0.01501195,2789.5,2788.8,1.1529]
[1645227708183,0.00531315,2789.5,2788.8,1.1529]
[1645227708380,0.00242505,2789.1,2788.8,1.1529]
[1645227709382,0.89675,2789.4,2788.8,1.1529]
[1645227709580,0.00531315,2789.3,2788.8,5.5495825]
[1645227709782,0.00242506,2789.1,2788.8,5.5495825]
[1645227710382,0.00242506,2789.1,2788.8,2.0495825]
[1645227710581,0.00531315,2789.7,2788.8,2.0495857]
[1645227710782,0.00242506,2789.1,2788.8,2.0495857]
[1645227711380,0.00242506,2789.1,2788.8,5.5495857]
[1645227711833,0.00531315,2789.7,2788.8,2.0495857]
[1645227712031,0.00242506,2789.1,2788.8,2.0495857]
[1645227712233,0.00242506,2789.1,2788.8,2.9462057]
[1645227712431,0.00242506,2789.1,2788.8,2.9449812]
[1645227712632,0.00242506,2789.1,2788.8,6.4449812]
[1645227712833,0.00242506,2789.1,2788.8,2.9449812]
[1645227713039,1.1855801,2789.5,2788.8,2.9449812]
[1645227713235,0.00242506,2789.1,2788.8,3.8416112]
[1645227713635,0.00242506,2789.1,2788.8,7.3416112]
[1645227714037,0.0096988,2789.5,2788.8,7.3416112]
[1645227714038,0.0096988,2789.5,2789.1,0.00329947]
[1645227714240,0.00531315,2789.7,2789.1,0.89991567]
[1645227714535,0.0096988,2789.5,2789.1,0.89991567]
[1645227714735,0.0096988,2789.5,2789.1,0.00329947]
[1645227715235,0.01501195,2789.5,2789.1,0.00329947]
[1645227715475,0.00531315,2789.5,2789.1,0.00329947]
[1645227717274,0.90202315,2789.5,2789.1,0.00329947]
[1645227718375,0.00242166,2789.4,2789.1,0.00329947]
[1645227719227,0.00242166,2789.4,2789.1,3.50329947]
[1645227719431,0.00242166,2789.4,2789.2,0.8965]
[1645227719631,0.0024015,2789.4,2789.3,3.5]
[1645227719826,0.0024015,2789.4,2789.3,5.02278613]
[1645227720027,0.0024015,2789.4,2789.3,3.5]
[1645227720427,0.0024015,2789.4,2789.3,1.5228286]
[1645227720627,0.00531315,2789.9,2789.1,1.79635937]
[1645227720628,0.00240148,2789.5,2789.1,1.79635937]
[1645227721629,0.00240149,2789.4,2789.2,1.52286636]
[1645227722031,0.00240149,2789.4,2789.1,0.00329947]
[1645227722229,0.00240149,2789.4,2789.1,1.52616563]
[1645227722629,0.00531315,2789.6,2789.1,1.52616563]
[1645227722875,0.00205922,2789.4,2789.1,1.52616563]
[1645227723875,1.9089478,2789.5,2789.1,1.52616563]
[1645227724079,0.00205922,2789.4,2789.1,1.52616563]
[1645227725077,0.89671,2789.5,2789.1,1.52616563]
[1645227725078,0.89671,2789.5,2789.1,2.55116144]
[1645227725280,0.89671,2789.5,2789.2,1.52286616]
[1645227725479,0.00205922,2789.4,2789.2,1.52286616]
[1645227726276,0.89671,2789.5,2789.2,1.52286616]
[1645227726479,0.00208459,2789.4,2789.2,1.52286616]
[1645227726736,0.00208459,2789.4,2789.1,0.00329947]
[1645227727431,0.00531315,2789.6,2789.1,0.00329947]
[1645227727634,0.90194315,2789.8,2789.1,0.89991377]
[1645227727832,0.90194315,2789.8,2789.2,1.52299398]
[1645227727833,0.00211244,2789.4,2789.2,1.52299398]
[1645227728632,0.90194315,2789.8,2789.2,1.52299398]
[1645227728833,0.00211243,2789.4,2789.2,1.52299398]
[1645227729838,0.89667,2789.7,2789.2,1.52299398]
[1645227730036,0.00531315,2789.6,2789.1,0.00329947]
[1645227730238,0.00210672,2789.4,2789.1,0.00329947]
[1645227730469,0.00210672,2789.4,2789.1,1.52619759]
[1645227730670,0.00210672,2789.4,2789.1,0.00329947]
[1645227731071,0.89886672,2789.4,2789.1,0.00329947]
[1645227731470,0.00210304,2789.4,2789.1,0.00329947]
[1645227731672,0.00210304,2789.4,2789.1,5.02624483]
[1645227731871,0.00210304,2789.4,2789.2,1.52294536]
[1645227732273,0.00210304,2789.4,2789.3,1.52286303]
[1645227732477,0.00420607,2789.4,2789.1,5.0261625]
[1645227732673,0.00210303,2789.4,2789.2,1.52286303]
[1645227733371,0.91296365,2789.8,2789.2,1.52286303]
[1645227733771,0.00210431,2789.4,2789.2,1.52286303]
[1645227734229,0.00210431,2789.4,2789.3,3.5]
[1645227734433,0.00210431,2789.4,2789.3,5.02286303]
[1645227734629,0.91296365,2790.1,2789.4,0.00286249]
[1645227734828,0.91296365,2790.1,2789.4,1.52572552]
[1645227735036,0.00210487,2789.5,2789.4,1.52572552]
[1645227735729,0.00210487,2789.5,2789.4,0.00286249]
[1645227736029,0.00531315,2789.8,2789.4,1.52572552]
[1645227736228,0.89658,2789.9,2789.4,1.52572552]
[1645227736430,0.89658,2789.9,2789.4,0.00286249]
[1645227736431,0.00531315,2789.8,2789.4,0.00286249]
[1645227736633,0.89658,2789.9,2789.4,0.00286249]
[1645227736829,0.00531315,2790.0,2789.4,0.00286249]
[1645227736830,0.90194315,2789.8,2789.4,0.00286249]
[1645227737030,0.89663,2789.8,2789.4,1.52564317]
[1645227738467,0.00230932,2789.7,2789.4,0.00286249]
[1645227739469,0.99533493,2789.7,2789.4,0.00286249]
[1645227739673,0.99764426,2789.7,2789.4,0.00286249]
[1645227740071,2.79117426,2789.7,2789.4,0.00286249]
[1645227740473,0.00230933,2789.7,2789.4,0.00286249]
[1645227740685,0.9076505,2789.8,2789.4,0.00286249]
[1645227740871,0.00230904,2789.7,2789.4,0.89939299]
[1645227741730,0.00531315,2789.9,2789.4,1.86691381]
[1645227742130,0.00230904,2789.7,2789.4,1.86691381]
[1645227742941,0.00531315,2789.9,2789.5,1.5227795]
[1645227743131,0.00531315,2789.9,2789.4,1.86691381]
[1645227743332,0.00230904,2789.7,2789.4,0.97038331]
[1645227743533,0.00230904,2789.7,2789.5,1.52276553]
[1645227743931,0.00230904,2789.7,2789.4,0.97038331]
[1645227744135,0.90190315,2789.9,2789.4,0.97038331]
[1645227744537,0.90190315,2789.9,2789.4,0.00286249]
[1645227744538,0.00230909,2789.7,2789.4,0.00286249]
[1645227745480,0.89662,2789.8,2789.4,0.00286249]
[1645227745679,0.8989691,2789.7,2789.4,0.00286249]
[1645227746380,0.0023091,2789.7,2789.2,2.12231337]
[1645227746578,0.00531315,2789.6,2789.3,1.52286348]
[1645227746881,0.9076505,2790.0,2789.3,7.7731831]
[1645227746882,0.0023091,2789.7,2789.3,7.7731831]
[1645227747080,0.0023091,2789.7,2789.4,1.52286348]
[1645227747880,0.00531315,2789.9,2789.4,1.52286348]
[1645227748083,0.00230909,2789.7,2789.4,1.52286348]
[1645227748481,0.00230909,2789.7,2789.4,2.41933328]
[1645227748680,0.00230909,2789.7,2789.5,1.52286348]
[1645227749135,0.90191315,2789.9,2789.3,0.95737942]
[1645227749329,0.90191315,2789.9,2789.4,1.52282324]
[1645227749330,0.00230908,2789.7,2789.4,1.52282324]
[1645227749528,0.90995958,2789.7,2789.1,1.16219947]
[1645227749729,0.00531315,2789.6,2789.2,1.52294669]
[1645227750525,0.00230912,2789.5,2789.2,1.52294669]
[1645227751329,1.13187527,2789.6,2789.2,1.52294669]
[1645227751527,1.12656212,2789.6,2789.2,1.52294669]
[1645227751727,0.89900909,2789.5,2789.2,1.52294669]
[1645227751926,0.90432224,2789.5,2789.2,1.52294669]
[1645227752128,0.90432224,2789.5,2789.1,0.00329947]
[1645227752527,0.90201315,2789.5,2789.1,0.00329947]
[1645227752978,0.9043222,2789.5,2789.1,0.00329947]
[1645227753279,0.0076222,2789.5,2789.1,0.00329947]
[1645227753471,0.0076222,2789.5,2789.1,3.50329947]
[1645227753472,0.00230905,2789.5,2789.1,3.50329947]
[1645227753672,0.00230905,2789.5,2789.2,1.5229988]
[1645227753872,1.1969,2790.0,2789.2,1.5229988]
[1645227753873,0.00531315,2789.8,2789.2,1.5229988]
[1645227754072,0.00230905,2789.5,2789.3,2.4194684]
[1645227754275,0.00230905,2789.5,2789.4,1.5229988]
[1645227754672,0.00230905,2789.5,2789.1,0.00329947]
[1645227754872,0.00230905,2789.5,2789.1,1.52620758]
[1645227755172,0.00531315,2789.7,2789.1,1.52620758]
[1645227755373,0.00230905,2789.5,2789.1,1.52620758]
[1645227755574,0.89901905,2789.5,2789.1,1.52620758]
[1645227756276,0.89671,2789.5,2789.1,0.00329947]
[1645227756475,0.89901905,2789.5,2789.2,1.52290811]
[1645227756720,0.89901905,2789.5,2789.3,1.52290811]
[1645227756920,0.89901905,2789.5,2789.1,0.00329947]
[1645227757121,0.9043322,2789.5,2789.1,0.00329947]
[1645227757521,0.90202315,2789.5,2789.1,0.00329947]
[1645227757721,0.9043322,2789.5,2789.1,0.00329947]
[1645227758122,0.89901905,2789.5,2789.1,0.00329947]
[1645227758821,1.1804648,2789.3,2789.1,0.00329947]
[1645227759022,0.89676,2789.4,2789.1,0.00329947]
[1645227759723,0.89676,2789.4,2789.1,1.52622205]
[1645227759923,0.89676,2789.4,2789.2,1.52292258]
[1645227760224,0.89676,2789.4,2789.1,0.00329947]
[1645227761483,0.00230902,2789.5,2789.1,0.00329947]
[1645227761690,0.00230902,2789.5,2789.1,1.52626481]
[1645227761881,0.00230902,2789.5,2789.2,3.5]
[1645227762083,0.00230902,2789.5,2789.3,1.52296534]
[1645227762280,0.00531315,2789.7,2789.4,1.52296534]
[1645227762480,0.95649184,2789.7,2789.5,1.52296534]
[1645227762681,0.96180499,2789.7,2789.1,0.00329947]
[1645227763281,1.86945549,2789.7,2789.1,1.52618168]
[1645227763679,0.00230912,2789.5,2789.2,1.52288221]
[1645227763881,0.00230912,2789.5,2789.3,1.52288221]
[1645227764124,0.00230912,2789.5,2789.4,1.52288221]
[1645227764730,1.86945549,2789.7,2789.1,1.52618168]
[1645227764927,0.00230911,2789.6,2789.1,1.52618168]
[1645227765127,0.90995961,2789.6,2789.1,1.52618168]
[1645227765927,0.9076505,2789.6,2789.1,1.52618168]
[1645227766132,2.75526499,2789.7,2789.1,1.52618168]
[1645227766133,0.00230909,2789.5,2789.1,1.52618168]
[1645227766332,0.89901909,2789.5,2789.1,1.52618168]
[1645227767131,0.89671,2789.5,2789.1,1.52618168]
[1645227767333,0.89901905,2789.5,2789.1,5.02618168]
[1645227767532,0.89901905,2789.5,2789.1,1.52618168]
[1645227768177,0.89671,2789.5,2789.1,1.52618168]
[1645227768576,0.89901905,2789.5,2789.1,1.52618168]
[1645227769179,0.89901905,2789.5,2789.1,1.52471806]
[1645227769377,0.89671,2789.5,2789.1,1.52471806]
[1645227769777,0.89901905,2789.5,2789.1,1.52471806]
[1645227770581,0.89901905,2789.5,2789.2,1.52288221]
[1645227770582,0.89671,2789.5,2789.2,1.52288221]
[1645227770778,0.89671,2789.5,2789.3,1.52288221]
[1645227770980,0.89901905,2789.5,2789.1,0.00183585]
[1645227771822,0.89671,2789.5,2789.1,0.00183585]
[1645227772020,0.89901905,2789.5,2789.1,0.00183585]
[1645227772920,0.89901905,2789.5,2789.1,1.52474876]
[1645227773121,0.89671,2789.5,2789.2,1.52291291]
[1645227773320,0.89901905,2789.5,2789.3,1.52291291]
[1645227773521,0.89901905,2789.5,2789.1,0.00183585]
[1645227773927,0.89901905,2789.5,2789.1,3.50183585]
[1645227774122,0.89901905,2789.5,2789.2,1.52293275]
[1645227774325,0.89671,2789.5,2789.2,1.52293275]
[1645227774521,0.89901905,2789.5,2789.2,1.52293275]
[1645227775371,0.89671,2789.5,2789.2,1.52293275]
[1645227775576,0.88262017,2789.6,2789.2,1.52293275]
[1645227775775,0.00230909,2789.5,2789.2,1.52293275]
[1645227776579,0.88262017,2789.6,2789.2,1.52293275]
[1645227776977,0.00230909,2789.5,2789.2,1.52293275]
[1645227777375,0.00230909,2789.5,2789.2,5.02293275]
[1645227777576,0.00230909,2789.5,2789.3,1.52293275]
[1645227777874,0.88262017,2789.6,2789.3,1.52293275]
[1645227778076,0.00230909,2789.5,2789.4,1.52293275]
[1645227778676,0.00230909,2789.5,2789.2,5.02293275]
[1645227778876,0.00230909,2789.5,2789.3,1.52293275]
[1645227779127,0.89666,2789.7,2789.3,1.52293275]
[1645227779329,0.00230909,2789.5,2789.3,1.52293275]
[1645227780327,2.06041261,2789.7,2789.3,1.52293275]
[1645227780524,2.06041261,2789.7,2789.4,1.52293275]
[1645227780525,0.00230912,2789.5,2789.4,1.52293275]
[1645227781027,0.00230912,2789.5,2789.2,5.02293275]
[1645227781227,0.00230912,2789.5,2789.3,1.52293275]
[1645227781528,2.06041261,2789.7,2789.4,1.52293275]
[1645227781728,0.00230909,2789.5,2789.4,1.52293275]
[1645227781928,0.00230909,2789.5,2789.4,5.02293275]
[1645227782125,0.00531315,2789.8,2789.6,0.00314206]
[1645227782326,0.00923501,2789.9,2789.6,1.52607481]
[1645227782528,0.00923501,2789.9,2789.7,1.52293275]
[1645227782727,0.00531315,2790.3,2789.8,1.52293275]
[1645227782982,0.00531315,2790.3,2789.6,1.52607481]
[1645227782983,0.91785017,2790.3,2789.6,1.52607481]
[1645227783176,0.91785017,2790.3,2789.6,4.21501851]
[1645227783377,0.00531315,2790.3,2789.7,1.52293275]
[1645227783979,0.00531315,2790.3,2789.8,3.5]
[1645227784289,0.00531315,2790.3,2789.9,1.52293275]
[1645227784679,1.08295735,2790.4,2789.9,1.52293275]
[1645227784881,0.91296365,2790.3,2789.6,0.00314206]
[1645227785380,1.80957365,2790.3,2789.6,1.52575149]
[1645227785583,0.89661,2790.2,2789.6,1.52575149]
[1645227785882,0.00531315,2790.1,2789.7,5.02260943]
[1645227786082,0.00531315,2790.2,2789.8,1.52260943]
[1645227786288,0.00531315,2790.3,2789.9,1.52260943]
[1645227786482,0.00531315,2790.3,2789.6,0.00314206]
[1645227786732,0.00531315,2790.3,2789.6,2.55663189]
[1645227786733,0.00230588,2790.0,2789.6,2.55663189]
[1645227787034,0.00230588,2790.0,2789.7,1.52255578]
[1645227787436,0.8965,2790.2,2789.7,1.52255578]
[1645227787631,0.9076505,2790.4,2789.7,1.52255578]
[1645227787933,0.9076505,2790.4,2789.8,0.8963]
[1645227787934,0.00234539,2790.0,2789.8,0.8963]
[1645227788132,0.00234539,2790.0,2789.9,5.02255578]
[1645227788731,0.00531315,2790.6,2789.9,5.02255578]
[1645227788934,0.00234537,2790.1,2790.0,1.52255578]
[1645227789333,0.00234537,2790.1,2790.0,5.02255578]
[1645227789933,0.00531315,2790.7,2790.0,5.91884068]
[1645227790137,0.00234535,2790.2,2790.0,0.8962849]
[1645227790374,0.00234535,2790.2,2789.8,3.5]
[1645227790578,0.00234535,2790.2,2789.9,1.52247335]
[1645227790774,0.00234535,2790.2,2790.0,3.5]
[1645227790975,0.00234535,2790.2,2790.1,1.52237552]
[1645227791174,0.00531315,2790.7,2790.2,0.8962758]
[1645227791383,0.01449805,2790.7,2790.2,0.8962758]
[1645227791575,0.01449805,2790.7,2789.9,1.2009]
[1645227792374,0.00531315,2790.7,2789.9,1.2009]
[1645227792575,0.00229653,2790.4,2789.9,1.2009]
[1645227792774,0.00229653,2790.4,2790.0,1.52243587]
[1645227792975,0.00760968,2790.4,2789.9,1.2009]
[1645227793473,0.00531315,2790.4,2789.9,1.2009]
[1645227793674,0.00531315,2790.4,2790.0,1.5224031]
[1645227793876,0.00229656,2790.3,2790.0,1.5224031]
[1645227794726,0.00531315,2790.7,2790.0,1.5224031]
[1645227794922,0.00230753,2790.3,2790.0,1.5224031]
[1645227795923,0.0145419,2790.7,2790.0,1.5224031]
[1645227795924,0.00531315,2790.7,2790.0,1.5224031]
[1645227796123,0.00230753,2790.3,2790.0,1.5224031]
[1645227796326,0.89875753,2790.3,2790.0,1.5224031]
[1645227796725,0.89875753,2790.3,2789.7,5.9289613]
[1645227796928,0.00531315,2790.2,2789.8,1.52243297]
[1645227797230,0.00531315,2790.7,2790.1,1.13729826]
[1645227797526,0.00922886,2790.6,2790.2,0.8962635]
[1645227798383,0.00531315,2790.7,2789.9,1.1941]